{"text_format":"3","workbook":"xlsx","n_sheets":11,"sheets":["0812 (Beschäftigte E12-E15)","0817 (Beschäftigte E1-E11)","0820 (MTArb)","0822 (sonst. Beschäf.-Entgelte)","0831 (Gegenstände bis 410 €)","0834 (Mieten u. Rechnerkosten)","0835 (Vergabe von Aufträgen)","0843 (Sonst. allg. Verw.-Ausg.)","0846 (Dienstreisen)","0850 (Gegenstände über 410 €)","Tabelle1"],"not_rendered":{"defined_names":20},"read":"whole","date_system":"1900"}

{"sheet":"0812 (Beschäftigte E12-E15)","index":0,"n_rows":3,"n_cols":6,"rows_kept":3,"merged":[[0,0,0,2]]}
["Belegliste als Anlage zum Verwendungsnachweis vom",{"$nulls":3},"FKZ:"]
["Lfd. Nr.\nBeleg","Datum \nder Zahlung","Empfänger","Zahlungsgrund","Zahlbetrag\n(EUR)","Summe\nPos. 0812"]
[{"$nulls":5},{"$f":"SUM(E:E)","v":{"v":0,"d":"0.00 €"}}]

{"sheet":"0817 (Beschäftigte E1-E11)","index":1,"n_rows":3,"n_cols":6,"rows_kept":3,"merged":[[0,0,0,2]]}
["Belegliste als Anlage zum Verwendungsnachweis vom",null,null,{"$f":"'0812 (Beschäftigte E12-E15)'!$D$1","v":"00:00:00"},"FKZ:",{"$f":"'0812 (Beschäftigte E12-E15)'!$F$1","v":0}]
["Lfd. Nr.\nBeleg","Datum \nder Zahlung","Empfänger","Zahlungsgrund","Zahlbetrag\n(EUR)","Summe\nPos. 0817"]
[{"$nulls":5},{"$f":"SUM(E:E)","v":{"v":0,"d":"0.00 €"}}]

{"sheet":"0820 (MTArb)","index":2,"n_rows":3,"n_cols":6,"rows_kept":3,"merged":[[0,0,0,2]]}
["Belegliste als Anlage zum Verwendungsnachweis vom",null,null,{"$f":"'0812 (Beschäftigte E12-E15)'!$D$1","v":"00:00:00"},"FKZ:",{"$f":"'0812 (Beschäftigte E12-E15)'!$F$1","v":0}]
["Lfd. Nr.\nBeleg","Datum \nder Zahlung","Empfänger","Zahlungsgrund","Zahlbetrag\n(EUR)","Summe\nPos. 0820"]
[{"$nulls":5},{"$f":"SUM(E:E)","v":{"v":0,"d":"0.00 €"}}]

{"sheet":"0822 (sonst. Beschäf.-Entgelte)","index":3,"n_rows":3,"n_cols":6,"rows_kept":3,"merged":[[0,0,0,2]]}
["Belegliste als Anlage zum Verwendungsnachweis vom",null,null,{"$f":"'0812 (Beschäftigte E12-E15)'!$D$1","v":"00:00:00"},"FKZ:",{"$f":"'0812 (Beschäftigte E12-E15)'!$F$1","v":0}]
["Lfd. Nr.\nBeleg","Datum \nder Zahlung","Empfänger","Zahlungsgrund","Zahlbetrag\n(EUR)","Summe\nPos. 0822"]
[{"$nulls":5},{"$f":"SUM(E:E)","v":{"v":0,"d":"0.00 €"}}]

{"sheet":"0831 (Gegenstände bis 410 €)","index":4,"n_rows":3,"n_cols":6,"rows_kept":3,"merged":[[0,0,0,2]]}
["Belegliste als Anlage zum Verwendungsnachweis vom",null,null,{"$f":"'0812 (Beschäftigte E12-E15)'!$D$1","v":"00:00:00"},"FKZ:",{"$f":"'0812 (Beschäftigte E12-E15)'!$F$1","v":0}]
["Lfd. Nr.\nBeleg","Datum \nder Zahlung","Empfänger","Zahlungsgrund","Zahlbetrag\n(EUR)","Summe\nPos. 0831"]
[{"$nulls":5},{"$f":"SUM(E:E)","v":{"v":0,"d":"0.00 €"}}]

{"sheet":"0834 (Mieten u. Rechnerkosten)","index":5,"n_rows":3,"n_cols":6,"rows_kept":3,"merged":[[0,0,0,2]]}
["Belegliste als Anlage zum Verwendungsnachweis vom",null,null,{"$f":"'0812 (Beschäftigte E12-E15)'!$D$1","v":"00:00:00"},"FKZ:",{"$f":"'0812 (Beschäftigte E12-E15)'!$F$1","v":0}]
["Lfd. Nr.\nBeleg","Datum \nder Zahlung","Empfänger","Zahlungsgrund","Zahlbetrag\n(EUR)","Summe\nPos. 0834"]
[{"$nulls":5},{"$f":"SUM(E:E)","v":{"v":0,"d":"0.00 €"}}]

{"sheet":"0835 (Vergabe von Aufträgen)","index":6,"n_rows":3,"n_cols":6,"rows_kept":3,"merged":[[0,0,0,2]]}
["Belegliste als Anlage zum Verwendungsnachweis vom",null,null,{"$f":"'0812 (Beschäftigte E12-E15)'!$D$1","v":"00:00:00"},"FKZ:",{"$f":"'0812 (Beschäftigte E12-E15)'!$F$1","v":0}]
["Lfd. Nr.\nBeleg","Datum \nder Zahlung","Empfänger","Zahlungsgrund","Zahlbetrag\n(EUR)","Summe\nPos. 0835"]
[{"$nulls":5},{"$f":"SUM(E:E)","v":{"v":0,"d":"0.00 €"}}]

{"sheet":"0843 (Sonst. allg. Verw.-Ausg.)","index":7,"n_rows":3,"n_cols":6,"rows_kept":3,"merged":[[0,0,0,2]]}
["Belegliste als Anlage zum Verwendungsnachweis vom",null,null,{"$f":"'0812 (Beschäftigte E12-E15)'!$D$1","v":"00:00:00"},"FKZ:",{"$f":"'0812 (Beschäftigte E12-E15)'!$F$1","v":0}]
["Lfd. Nr.\nBeleg","Datum \nder Zahlung","Empfänger","Zahlungsgrund","Zahlbetrag\n(EUR)","Summe\nPos. 0843"]
[{"$nulls":5},{"$f":"SUM(E:E)","v":{"v":0,"d":"0.00 €"}}]

{"sheet":"0846 (Dienstreisen)","index":8,"n_rows":3,"n_cols":6,"rows_kept":3,"merged":[[0,0,0,2]]}
["Belegliste als Anlage zum Verwendungsnachweis vom",null,null,{"$f":"'0812 (Beschäftigte E12-E15)'!$D$1","v":"00:00:00"},"FKZ:",{"$f":"'0812 (Beschäftigte E12-E15)'!$F$1","v":0}]
["Lfd. Nr.\nBeleg","Datum \nder Zahlung","Empfänger","Zahlungsgrund","Zahlbetrag\n(EUR)","Summe\nPos. 0846"]
[{"$nulls":5},{"$f":"SUM(E:E)","v":{"v":0,"d":"0.00 €"}}]

{"sheet":"0850 (Gegenstände über 410 €)","index":9,"n_rows":3,"n_cols":6,"rows_kept":3,"merged":[[0,0,0,2]]}
["Belegliste als Anlage zum Verwendungsnachweis vom",null,null,{"$f":"'0812 (Beschäftigte E12-E15)'!$D$1","v":"00:00:00"},"FKZ:",{"$f":"'0812 (Beschäftigte E12-E15)'!$F$1","v":0}]
["Lfd. Nr.\nBeleg","Datum \nder Zahlung","Empfänger","Zahlungsgrund","Zahlbetrag\n(EUR)","Summe\nPos. 0850"]
[{"$nulls":5},{"$f":"SUM(E:E)","v":{"v":0,"d":"0.00 €"}}]

{"sheet":"Tabelle1","index":10,"n_rows":0,"n_cols":0,"rows_kept":0}